bitfinex-derivatives/quotes_SOLF0:USTF0_20250425
["timestamp","ask_amount","ask_price","bid_price","bid_amount"]
[1745555930537,29.25239749,151.41,151.36,11.89689749]
[1745555930538,6.6029,151.4,151.36,11.89689749]
[1745555930838,29.25239749,151.41,151.36,11.89689749]
[1745555932741,6.6036,151.39,151.36,5.29239749]
[1745555937341,6.6037,151.38,151.36,5.29239749]
[1745555937639,5.29239749,151.39,151.34,11.89779749]
[1745555938042,6.6039,151.38,151.34,11.89779749]
[1745555939443,6.6042,151.37,151.34,11.89779749]
[1745555940241,5.29239749,151.39,151.34,5.29239749]
[1745555940242,6.6047,151.36,151.34,5.29239749]
[1745555940746,6.6043,151.37,151.34,5.29239749]
[1745555940948,5.29239749,151.39,151.34,5.29239749]
[1745555941439,6.604,151.38,151.34,11.89759749]
[1745555941644,6.604,151.38,151.36,5.29239749]
[1745555942144,6.6034,151.39,151.36,5.29239749]
[1745555942843,6.6029,151.4,151.36,5.29239749]
[1745555943242,6.6029,151.4,151.36,11.89699749]
[1745555943444,6.6029,151.4,151.36,5.29239749]
[1745555944341,23.96,151.41,151.38,5.29239749]
[1745555944947,23.96,151.41,151.39,6.6032]
[1745555945645,23.96,151.41,151.38,11.89599749]
[1745555946246,30.5624,151.41,151.38,5.29239749]
[1745555946442,30.5624,151.41,151.37,6.604]
[1745555946642,30.5624,151.41,151.37,11.89639749]
[1745555950749,6.6024,151.41,151.37,11.89639749]
[1745555951548,6.6021,151.42,151.38,6.6036]
[1745555951942,6.6021,151.42,151.37,5.29239749]
[1745555952244,6.6025,151.41,151.37,11.89639749]
[1745555952551,7.24039749,151.43,151.37,5.29239749]
[1745555952850,6.6027,151.41,151.37,5.29239749]
[1745555953649,6.6027,151.41,151.37,11.89629749]
[1745555957655,6.6027,151.41,151.37,5.29239749]
[1745555957952,23.94,151.52,151.4,5.29239749]
[1745555958155,29.23239749,151.51,151.46,5.29239749]
[1745555958355,6.5985,151.5,151.46,5.29239749]
[1745555959254,30.5382,151.51,151.46,5.29239749]
[1745555960054,6.5985,151.5,151.46,5.29239749]
[1745555961164,30.5382,151.51,151.46,11.89259749]
[1745555961662,6.5993,151.49,151.44,11.89339749]
[1745555961862,5.29239749,151.48,151.43,5.29239749]
[1745555962364,11.89209749,151.48,151.43,11.89359749]
[1745555963161,6.5998,151.47,151.43,11.89359749]
[1745555964865,6.5998,151.47,151.44,6.6011]
[1745555965065,6.6003,151.46,151.43,5.29239749]
[1745555965467,23.94,151.47,151.43,11.89379749]
[1745555965667,30.5399,151.47,151.43,11.89379749]
[1745555965865,23.94,151.47,151.43,11.89379749]
[1745555966471,6.6008,151.45,151.4,29.23239749]
[1745555966659,5.29239749,151.44,151.39,5.29239749]
[1745555966966,25.9315,151.47,151.37,23.94]
[1745555966967,5.29239749,151.42,151.37,29.23239749]
[1745555967163,5.29239749,151.42,151.37,5.29239749]
[1745555967365,5.29239749,151.4,151.35,9.22449749]
[1745555968168,5.29239749,151.4,151.36,6.6044]
[1745555968664,5.29239749,151.4,151.37,6.6041]
[1745555969469,5.29239749,151.4,151.38,6.6036]
[1745555969666,11.89459749,151.42,151.38,6.6036]
[1745555973270,11.89459749,151.42,151.39,6.6032]
[1745555974472,11.89459749,151.42,151.38,6.6036]
[1745555975874,6.6024,151.41,151.38,6.6036]
[1745555977475,6.6024,151.41,151.37,5.29239749]
[1745555977476,23.94,151.43,151.4,6.6027]
[1745555978270,23.94,151.43,151.41,6.6024]
[1745555978667,11.89359749,151.44,151.41,6.6024]
[1745555979070,5.29239749,151.44,151.41,6.6024]
[1745555979573,5.29239749,151.44,151.4,6.6027]
[1745555979773,11.89359749,151.44,151.4,6.6027]
[1745555980674,11.89359749,151.44,151.41,6.6023]
[1745555981071,11.89359749,151.44,151.4,6.6028]
[1745555981677,6.6016,151.43,151.4,6.6028]
[1745555981972,29.23239749,151.42,151.37,5.29239749]
[1745555982182,5.29239749,151.4,151.36,5.29239749]
[1745555983277,11.89529749,151.4,151.36,11.89669749]
[1745555984779,11.89529749,151.4,151.37,6.6041]
[1745555985480,11.89529749,151.4,151.36,11.89689749]
[1745555990183,5.29239749,151.4,151.37,6.6037]
[1745555990882,5.29239749,151.4,151.38,6.6037]
[1745555991380,5.29239749,151.4,151.36,5.29239749]
[1745555991581,5.29239749,151.4,151.37,6.604]
[1745555992083,6.6024,151.41,151.37,6.604]
[1745555995189,6.6029,151.4,151.37,6.604]
[1745555996190,6.6033,151.39,151.36,6.6046]
[1745555996580,5.29239749,151.4,151.34,5.29239749]
[1745555996781,6.6037,151.39,151.35,6.6047]
[1745555998690,6.6037,151.39,151.36,6.6046]
[1745555999192,30.5422,151.42,151.38,6.6036]
[1745555999389,23.94,151.42,151.36,5.29239749]
[1745555999694,6.6025,151.41,151.37,6.6039]
[1745556000892,6.6025,151.41,151.38,6.6037]
[1745556001485,6.6029,151.4,151.37,6.604]
[1745556001795,23.94,151.42,151.34,5.29239749]
[1745556002092,6.604,151.38,151.34,11.89749749]
[1745556002289,5.29239749,151.39,151.34,11.89749749]
[1745556002694,6.6039,151.38,151.34,11.89749749]
[1745556004295,30.5439,151.38,151.34,11.89749749]
[1745556010597,23.94,151.38,151.35,6.6049]
[1745556011092,23.94,151.38,151.36,6.6046]
[1745556011298,11.89539749,151.4,151.36,11.89699749]
[1745556011498,23.94,151.41,151.36,5.29239749]
[1745556012099,29.23239749,151.41,151.36,5.29239749]
[1745556012701,29.23239749,151.41,151.36,11.89669749]
[1745556013198,30.5425,151.41,151.36,5.29239749]
[1745556013397,30.5425,151.41,151.37,6.6042]
[1745556013697,30.5425,151.41,151.36,5.29239749]
[1745556014201,30.5425,151.41,151.36,11.89669749]
[1745556016399,30.5425,151.41,151.37,6.6041]
[1745556016600,30.5425,151.41,151.36,5.29239749]
[1745556016800,30.5425,151.41,151.36,11.89689749]
[1745556017803,6.603,151.4,151.36,6.6045]
[1745556018001,6.603,151.4,151.36,11.89689749]
[1745556019199,35.83499749,151.41,151.37,6.6042]
[1745556020303,30.5426,151.41,151.37,6.6042]
[1745556020505,23.94,151.41,151.38,11.89589749]
[1745556021101,23.94,151.41,151.38,5.29239749]
[1745556022305,23.94,151.41,151.38,11.89579749]
[1745556023007,23.94,151.41,151.34,4.0612]
[1745556023212,23.94,151.41,151.39,5.29239749]
[1745556023507,29.23239749,151.44,151.39,5.29239749]
[1745556023708,35.83369749,151.44,151.39,11.89529749]
[1745556024008,29.23239749,151.44,151.39,5.29239749]
[1745556024306,29.23239749,151.44,151.41,6.6024]
[1745556024507,29.23239749,151.44,151.39,5.29239749]
[1745556024806,35.83349749,151.44,151.4,6.6026]
[1745556025005,30.5411,151.44,151.4,6.6026]
[1745556025801,30.5411,151.44,151.39,11.89549749]
[1745556026807,30.5411,151.44,151.4,6.6028]
[1745556027108,23.94,151.44,151.4,6.6028]
[1745556027713,23.94,151.44,151.41,6.6023]
[1745556028212,23.94,151.44,151.41,11.89469749]
[1745556028813,23.94,151.44,151.42,6.6019]
[1745556029004,6.6003,151.46,151.42,6.6019]
[1745556030209,11.89309749,151.45,151.41,5.29239749]
[1745556030507,5.29239749,151.45,151.41,5.29239749]
[1745556031415,5.29239749,151.45,151.39,9.11899749]
[1745556031614,6.6012,151.44,151.4,6.6026]
[1745556036618,6.6008,151.45,151.41,6.6023]
[1745556036817,6.6008,151.45,151.41,11.89469749]
[1745556037819,6.6012,151.44,151.41,5.29239749]
[1745556041324,29.21239749,151.43,151.37,5.29239749]
[1745556041523,5.29239749,151.41,151.37,5.29239749]
[1745556041719,5.29239749,151.41,151.35,5.29239749]
[1745556041921,6.6029,151.4,151.36,6.6042]
[1745556043022,6.6029,151.4,151.35,5.29239749]
[1745556043023,5.29239749,151.39,151.34,5.29239749]
[1745556043227,5.29239749,151.39,151.31,31.12783133]
[1745556043228,5.29239749,151.37,151.31,36.42022882]
[1745556043925,5.29239749,151.37,151.32,6.606]
[1745556044226,5.29239749,151.37,151.31,36.42022882]
[1745556044427,5.29239749,151.37,151.33,5.29239749]
[1745556044628,23.92,151.38,151.35,5.29239749]
[1745556044926,31.06439749,151.41,151.35,5.29239749]
[1745556046228,6.6029,151.4,151.36,6.6044]
[1745556046729,6.6029,151.4,151.35,5.29239749]
[1745556046929,6.6029,151.4,151.35,11.89729749]
[1745556049332,31.06439749,151.41,151.36,6.6043]
[1745556049528,23.92,151.41,151.37,5.29239749]
[1745556049732,29.21239749,151.44,151.39,5.29239749]
[1745556049934,6.6018,151.43,151.39,5.29239749]
[1745556050230,29.21239749,151.44,151.39,5.29239749]
[1745556050630,6.602,151.42,151.39,5.29239749]
[1745556051226,6.6025,151.41,151.37,11.89649749]
[1745556052833,6.6025,151.41,151.37,5.29239749]
[1745556053032,6.603,151.4,151.37,5.29239749]
[1745556054134,6.603,151.4,151.36,6.6045]
[1745556054336,6.603,151.4,151.36,11.89689749]
[1745556055336,6.6026,151.41,151.36,11.89689749]
[1745556056737,6.6029,151.4,151.36,11.89689749]
[1745556057237,6.6026,151.41,151.36,11.89689749]
[1745556057434,6.6026,151.41,151.37,6.604]
[1745556057837,11.89449749,151.42,151.36,5.29239749]
[1745556059241,11.89449749,151.42,151.38,6.6037]
[1745556061341,5.29239749,151.42,151.36,5.29239749]
[1745556061943,5.29239749,151.4,151.36,5.29239749]
[1745556062142,29.21239749,151.4,151.36,5.29239749]
[1745556062945,35.81539749,151.4,151.36,5.29239749]
[1745556063546,6.6035,151.39,151.36,5.29239749]
[1745556063845,29.21239749,151.4,151.34,5.29239749]
[1745556065047,6.604,151.38,151.34,5.29239749]
[1745556065648,6.604,151.38,151.34,11.89769749]
[1745556065847,29.21239749,151.4,151.34,5.29239749]
[1745556066446,23.92,151.4,151.34,5.29239749]
[1745556066642,23.92,151.4,151.36,5.29239749]
[1745556066846,23.92,151.4,151.38,5.29239749]
[1745556068253,23.92,151.4,151.38,11.89599749]
[1745556068550,6.6021,151.42,151.38,11.89599749]
[1745556069551,6.6022,151.42,151.38,11.89609749]
[1745556069752,29.21239749,151.43,151.38,5.29239749]
[1745556070252,29.21239749,151.43,151.34,23.92]
[1745556070253,5.29239749,151.41,151.35,5.29239749]
[1745556070952,6.6033,151.4,151.36,6.6043]
[1745556074853,6.6033,151.4,151.37,6.6042]
[1745556075056,6.6033,151.4,151.37,11.89659749]
[1745556075353,5.29239749,151.42,151.36,5.29239749]
[1745556075555,5.29239749,151.4,151.36,5.29239749]
[1745556075948,5.29239749,151.38,151.33,3.7885]
[1745556076155,5.29239749,151.38,151.32,5.29239749]
[1745556076555,5.29239749,151.38,151.34,5.29239749]
[1745556077254,11.89629749,151.38,151.34,11.89779749]
[1745556077753,11.89629749,151.38,151.34,5.29239749]
[1745556077754,5.29239749,151.38,151.34,5.29239749]
[1745556078055,6.6042,151.37,151.34,5.29239749]
[1745556078255,5.29239749,151.38,151.34,5.29239749]
[1745556079257,11.89619749,151.38,151.34,11.89789749]
[1745556080857,5.29239749,151.38,151.35,6.605]
[1745556081057,30.5234,151.39,151.35,6.605]
[1745556084063,23.92,151.39,151.36,5.29239749]
[1745556084456,29.21239749,151.42,151.36,5.29239749]
[1745556085157,23.92,151.42,151.38,5.29239749]
[1745556085758,23.92,151.42,151.4,5.29239749]
[1745556087960,23.92,151.42,151.37,5.29239749]
[1745556088167,5.29239749,151.41,151.37,5.29239749]
[1745556088465,5.29239749,151.41,151.35,23.92]
[1745556088466,5.29239749,151.41,151.35,5.29239749]
[1745556088663,5.29239749,151.39,151.35,5.29239749]
[1745556090273,11.89589749,151.39,151.35,11.89709749]
[1745556092172,11.89589749,151.39,151.35,5.29239749]
[1745556092368,6.6038,151.38,151.34,6.6053]
[1745556092569,30.5238,151.38,151.34,6.6053]
[1745556092966,23.92,151.38,151.35,5.29239749]
[1745556093171,25.9596,151.41,151.32,23.92]
[1745556093367,25.9596,151.41,151.36,5.29239749]
[1745556093670,6.6029,151.4,151.36,11.89679749]
[1745556093863,25.9596,151.41,151.36,5.29239749]
[1745556094068,23.92,151.41,151.38,5.29239749]
[1745556095367,23.92,151.41,151.38,11.89589749]
[1745556096668,23.92,151.41,151.39,6.6032]
[1745556096867,5.29239749,151.44,151.4,5.29239749]
[1745556096868,29.21239749,151.44,151.4,5.29239749]
[1745556097068,23.92,151.44,151.4,5.29239749]
[1745556097270,23.92,151.44,151.4,11.89519749]
[1745556097865,30.5213,151.44,151.4,5.29239749]
[1745556098469,30.5213,151.44,151.39,6.6031]
[1745556098672,35.81369749,151.44,151.39,11.89549749]
[1745556098873,6.6016,151.43,151.39,11.89549749]
[1745556099073,29.21239749,151.44,151.37,5.29239749]
[1745556099273,5.29239749,151.42,151.37,5.29239749]
[1745556099470,11.89469749,151.42,151.37,5.29239749]
[1745556100175,5.29239749,151.42,151.38,6.6034]
[1745556102175,11.89439749,151.42,151.38,6.6034]
[1745556104380,6.6017,151.43,151.39,5.29239749]
[1745556104775,6.602,151.42,151.39,5.29239749]
[1745556107474,6.602,151.42,151.38,6.6034]
[1745556109581,11.89439749,151.42,151.38,6.6034]
[1745556110082,5.29239749,151.42,151.38,6.6034]
[1745556111482,5.29239749,151.42,151.39,6.6033]
[1745556114288,6.6017,151.43,151.39,6.6033]
[1745556114981,6.6017,151.43,151.38,6.6035]
[1745556115487,35.81369749,151.44,151.39,6.6033]
[1745556115885,35.81369749,151.44,151.39,11.89569749]
[1745556119186,6.6016,151.43,151.39,11.89569749]
[1745556119688,5.29239749,151.42,151.37,5.29239749]
[1745556120390,6.6025,151.41,151.37,5.29239749]
[1745556121089,6.6025,151.41,151.37,11.89649749]
[1745556122389,6.6025,151.41,151.37,5.29239749]
[1745556124593,5.29239749,151.4,151.34,29.21239749]
[1745556124794,5.29239749,151.38,151.32,9.13199749]
[1745556125592,6.6044,151.37,151.32,15.73789749]
[1745556125993,5.29239749,151.38,151.32,9.13199749]
[1745556126295,5.29239749,151.38,151.32,3.8396]
[1745556126490,5.29239749,151.38,151.33,5.29239749]
[1745556126791,11.89629749,151.38,151.33,11.89799749]
[1745556127293,11.89629749,151.38,151.33,5.29239749]
[1745556128095,6.6044,151.37,151.31,31.12783133]
[1745556128290,6.6044,151.37,151.32,5.29239749]
[1745556128589,23.92,151.42,151.34,5.29239749]
[1745556128893,23.92,151.44,151.38,5.29239749]
[1745556129085,23.92,151.44,151.4,5.29239749]
[1745556129290,30.5212,151.44,151.4,5.29239749]
[1745556129494,23.92,151.44,151.4,5.29239749]
[1745556130194,23.92,151.44,151.38,29.21239749]
[1745556130394,6.6016,151.43,151.38,5.29239749]
[1745556130994,11.89399749,151.43,151.38,5.29239749]
[1745556133897,6.602,151.42,151.38,5.29239749]
[1745556134499,23.92,151.44,151.4,5.29239749]
[1745556134706,23.92,151.47,151.42,5.29239749]
[1745556135401,23.92,151.47,151.44,5.29239749]
[1745556135402,30.5199,151.47,151.44,5.29239749]
[1745556138606,30.5199,151.47,151.43,6.6015]
[1745556142105,5.29239749,151.5,151.44,5.29239749]
[1745556142405,29.19239749,151.5,151.44,5.29239749]
[1745556143307,6.5991,151.49,151.45,6.6005]
[1745556145002,6.5991,151.49,151.43,23.9]
[1745556145003,25.11239749,151.46,151.32,10.4321049]
[1745556145203,5.29239749,151.33,151.3,153.72060972]
[1745556145403,11.89919749,151.31,151.3,153.72060972]
[1745556145698,11.89919749,151.31,151.29,192.15076215]
[1745556145699,29.19239749,151.31,151.29,185.27517426]
[1745556145900,6.6072,151.3,151.29,185.27517426]
[1745556146304,29.19239749,151.31,151.21,11.07809749]
[1745556146503,5.29239749,151.26,151.21,11.07809749]
[1745556147110,5.29239749,151.26,151.21,17.68909749]
[1745556147308,30.507,151.31,151.21,12.3967]
[1745556147508,8.26439303,151.29,151.21,12.3967]
[1745556150811,32.16439303,151.31,151.21,5.7857]
[1745556151011,32.16439303,151.31,151.22,8.26439303]
[1745556152516,23.9,151.31,151.22,8.26439303]
[1745556153313,23.9,151.31,151.23,6.6103]
[1745556154109,23.9,151.31,151.25,6.6094]
[1745556154316,23.9,151.31,151.26,8.26439303]
[1745556154814,23.9,151.31,151.25,6.6094]
[1745556157415,23.9,151.31,151.26,6.6089]
[1745556158421,23.9,151.31,151.27,6.6084]
[1745556158715,23.9,151.31,151.26,8.26439303]
[1745556159118,23.9,151.31,151.26,6.6086]
[1745556159316,23.9,151.31,151.24,32.18439303]
[1745556159817,23.9,151.31,151.27,6.6084]
[1745556161122,23.9,151.31,151.28,6.6078]
[1745556162721,23.9,151.31,151.29,6.6076]
[1745556163622,23.9,151.31,151.28,6.608]
[1745556168330,23.9,151.31,151.27,6.6084]
[1745556168820,23.9,151.31,151.24,32.18439303]
[1745556169326,23.9,151.31,151.27,5.2853093]
[1745556169627,23.9,151.31,151.28,6.608]
[1745556170231,5.2853093,151.29,151.21,5.7857]
[1745556170525,5.2853093,151.27,151.22,5.2853093]
[1745556170727,5.2853093,151.29,151.25,6.609]
[1745556171229,35.7922093,151.31,151.24,5.2853093]
[1745556172028,35.7922093,151.31,151.25,6.6091]
[1745556172230,6.6072,151.3,151.25,6.6091]
[1745556175030,5.2853093,151.26,151.21,3.7527]
[1745556175231,5.2853093,151.24,151.21,3.7527]
[1745556175632,5.2853093,151.24,151.21,10.3635]
[1745556176132,5.2853093,151.24,151.21,3.7527]
[1745556176332,5.2853093,151.24,151.19,31.1119]
[1745556176532,5.2853093,151.24,151.16,24.5]
[1745556176731,5.2853093,151.22,151.17,5.2853093]
[1745556177030,5.2853093,151.22,151.17,11.8981093]
[1745556177532,5.2853093,151.22,151.18,6.6124]
[1745556177732,5.2853093,151.22,151.17,5.2853093]
[1745556178132,5.2853093,151.22,151.18,6.6124]
[1745556179335,5.2853093,151.22,151.19,6.6119]
[1745556179533,5.2853093,151.24,151.17,5.2853093]
[1745556180033,5.2853093,151.24,151.19,6.612]
[1745556180532,11.8951093,151.25,151.19,5.2853093]
[1745556180728,11.8951093,151.25,151.2,6.6115]
[1745556182533,6.61,151.24,151.2,6.6115]
[1745556183132,11.8950093,151.25,151.2,6.6115]
[1745556183938,11.8947093,151.25,151.21,6.6111]
[1745556184232,5.2853093,151.26,151.21,11.8964093]
[1745556184534,6.6096,151.25,151.21,11.8964093]
[1745556185230,11.8943093,151.26,151.22,6.6106]
[1745556185435,5.2853093,151.26,151.21,5.2853093]
[1745556186134,6.6095,151.25,151.21,11.8962093]
[1745556186336,5.2853093,151.26,151.21,5.2853093]
[1745556186536,29.7853093,151.27,151.21,5.2853093]
[1745556187236,24.5,151.27,151.24,6.6097]
[1745556188135,24.5,151.27,151.25,11.8947093]
[1745556188337,24.5,151.27,151.25,5.2853093]
[1745556188535,24.5,151.27,151.23,5.2853093]
[1745556188737,24.5,151.27,151.21,5.2853093]
[1745556188931,24.5,151.27,151.23,5.2853093]
[1745556189336,24.5,151.27,151.23,11.8955093]
[1745556190840,31.1086,151.27,151.23,11.8955093]
[1745556191033,31.1086,151.27,151.23,5.2853093]
[1745556193039,31.1086,151.27,151.23,11.8955093]
[1745556193539,31.1086,151.27,151.23,5.2853093]
[1745556193736,24.32,151.31,151.25,5.2853093]
[1745556193936,24.32,151.31,151.28,5.2853093]
[1745556195041,24.32,151.31,151.28,11.8932093]
[1745556196539,480.6053093,151.36,151.3,11.8925093]
[1745556196737,5.2853093,151.32,151.27,5.2853093]
[1745556196940,5.2853093,151.3,151.25,5.2853093]
[1745556197641,5.2853093,151.3,151.24,24.32]
[1745556197838,5.2853093,151.3,151.25,5.2853093]
[1745556198241,11.8926093,151.3,151.26,6.6089]
[1745556198943,30.9269,151.31,151.27,6.6085]
[1745556199142,24.32,151.34,151.29,5.2853093]
[1745556199343,30.9259,151.34,151.29,5.2853093]
[1745556199538,30.9259,151.34,151.29,11.8926093]
[1745556199734,30.9259,151.34,151.29,5.2853093]
[1745556200241,30.9259,151.34,151.3,6.6071]
[1745556202240,24.32,151.34,151.24,24.32]
[1745556202440,6.6049,151.36,151.3,8.25547256]
[1745556202642,24.32,151.37,151.3,8.25547256]
[1745556202841,24.32,151.37,151.32,6.6061]
[1745556203243,6.6049,151.36,151.32,6.6061]
[1745556203442,24.32,151.37,151.32,6.6061]
[1745556203942,6.6048,151.36,151.32,6.6061]
[1745556204443,24.32,151.37,151.3,8.25547256]
[1745556204743,24.32,151.37,151.32,8.25547256]
[1745556205339,24.32,151.37,151.34,6.6052]
[1745556205540,24.32,151.37,151.32,8.25547256]
[1745556206045,24.32,151.37,151.34,6.6052]
[1745556206544,24.32,151.37,151.33,6.6057]
[1745556206736,24.32,151.37,151.32,8.25547256]
[1745556207240,30.9244,151.37,151.32,8.25547256]
[1745556207444,30.9244,151.37,151.32,14.86147256]
[1745556207644,24.32,151.37,151.32,14.86147256]
[1745556208148,24.32,151.37,151.33,6.6058]
[1745556208448,24.32,151.4,151.33,6.6058]
[1745556209247,6.6041,151.38,151.33,6.6058]
[1745556209551,24.32,151.4,151.33,6.6058]
[1745556210044,6.6043,151.37,151.33,6.6058]
[1745556211540,6.6043,151.37,151.34,6.6054]
[1745556211745,24.32,151.4,151.32,32.57547256]
[1745556211942,24.32,151.4,151.32,24.32]
[1745556212144,24.32,151.4,151.34,8.25547256]
[1745556212344,24.32,151.4,151.36,6.6043]
[1745556212542,24.32,151.4,151.36,8.25547256]
[1745556212748,6.6027,151.41,151.36,10.24997256]
[1745556213047,6.6021,151.42,151.37,6.6039]
[1745556213447,6.6024,151.41,151.37,6.6039]
[1745556213653,24.3,151.43,151.38,6.6037]
[1745556213952,24.3,151.43,151.36,10.24997256]
[1745556214348,6.6023,151.42,151.37,6.604]
[1745556214853,24.3,151.43,151.37,6.604]
[1745556215152,6.6024,151.41,151.37,6.604]
[1745556215551,24.3,151.43,151.36,16.85447256]
[1745556215753,6.6025,151.41,151.36,16.85447256]
[1745556216154,24.3,151.43,151.36,16.85447256]
[1745556216352,6.6025,151.41,151.36,16.85447256]
[1745556217556,6.6025,151.41,151.37,6.6041]
[1745556218560,6.6021,151.42,151.38,6.6036]
[1745556218853,24.3,151.43,151.38,6.6036]
[1745556219245,24.3,151.43,151.37,6.604]
[1745556219553,6.6023,151.42,151.37,6.604]
[1745556220753,6.6023,151.42,151.38,6.6037]
[1745556221053,24.3,151.43,151.38,6.6037]
[1745556221450,24.3,151.43,151.39,5.27717885]
[1745556221955,6.6025,151.41,151.39,5.27717885]
[1745556222449,6.6021,151.42,151.39,5.27717885]
[1745556222755,24.3,151.43,151.39,5.27717885]
[1745556223055,6.602,151.42,151.39,5.27717885]
[1745556224152,6.6012,151.44,151.41,5.27717885]
[1745556224454,29.63717885,151.46,151.41,5.27717885]
[1745556224757,6.6009,151.45,151.41,11.87957885]
[1745556225157,24.36,151.46,151.43,5.27717885]
[1745556225358,6.6007,151.45,151.43,5.27717885]
[1745556226053,475.64,151.5,151.43,5.27717885]
[1745556226054,5.27717885,151.49,151.43,5.27717885]
[1745556226259,29.63717885,151.49,151.45,5.27717885]
[1745556226556,5.27717885,151.49,151.45,5.27717885]
[1745556226759,24.36,151.52,151.47,5.27717885]
[1745556228063,30.9577,151.52,151.49,5.27717885]
[1745556228264,24.36,151.55,151.44,24.36]
[1745556228464,24.36,151.55,151.5,5.27717885]
[1745556229059,24.36,151.55,151.44,24.36]
[1745556229363,24.36,151.55,151.47,8.23500775]
[1745556229871,6.5979,151.52,151.48,6.5993]
[1745556230264,24.36,151.55,151.47,8.23500775]
[1745556230466,6.5985,151.5,151.47,8.23500775]
[1745556230660,24.36,151.55,151.47,8.23500775]
[1745556231167,24.36,151.55,151.44,24.36]
[1745556231366,32.59500775,151.55,151.46,8.23500775]
[1745556231566,24.36,151.55,151.46,8.23500775]
[1745556231756,24.36,151.55,151.47,6.5995]
[1745556232161,24.36,151.55,151.46,8.23500775]
[1745556232367,6.5985,151.51,151.46,14.83520775]
[1745556232566,24.36,151.55,151.46,8.23500775]
[1745556232865,6.598,151.52,151.47,6.5995]
[1745556233066,24.36,151.55,151.47,6.5995]
[1745556233367,6.5985,151.5,151.46,14.83520775]
[1745556233965,6.5982,151.51,151.46,14.83520775]
[1745556237574,6.5986,151.5,151.46,14.83520775]
[1745556237764,24.36,151.55,151.46,14.83520775]
[1745556238272,6.5983,151.51,151.46,14.83520775]
[1745556238473,24.36,151.55,151.46,8.23500775]
[1745556238873,6.5988,151.5,151.46,8.23500775]
[1745556239074,24.36,151.55,151.46,14.83500775]
[1745556239275,6.5982,151.51,151.46,14.83500775]
[1745556239676,24.36,151.55,151.46,14.83500775]
[1745556240075,24.36,151.55,151.47,6.5996]
[1745556240577,6.599,151.49,151.46,8.23500775]
[1745556240770,32.59500775,151.55,151.44,32.59500775]
[1745556240974,32.59500775,151.55,151.44,8.23500775]
[1745556241976,32.59500775,151.55,151.46,6.5999]
[1745556242477,6.5984,151.51,151.47,6.5998]
[1745556243979,6.5985,151.5,151.46,14.83510775]
[1745556246075,6.5985,151.5,151.46,8.23500775]
[1745556246774,32.59500775,151.55,151.46,8.23500775]
[1745556247479,6.5987,151.5,151.46,14.83520775]
[1745556249283,6.5987,151.5,151.48,5.27137041]
[1745556249488,6.5989,151.49,151.48,5.27137041]
[1745556250682,6.5989,151.49,151.45,24.34]
[1745556250683,5.27137041,151.49,151.46,5.27137041]
[1745556250884,5.27137041,151.47,151.42,24.56]
[1745556251086,29.83137041,151.47,151.42,5.27137041]
[1745556251984,29.83137041,151.47,151.42,11.87327041]
[1745556252283,24.56,151.47,151.42,5.27137041]
[1745556253284,6.6004,151.46,151.42,11.87317041]
[1745556253784,6.6004,151.46,151.42,5.27137041]
[1745556254787,6.6004,151.46,151.42,11.87327041]
[1745556256089,6.6007,151.45,151.42,5.27137041]
[1745556258093,6.6004,151.46,151.42,5.27137041]
[1745556258895,6.6008,151.45,151.42,5.27137041]
[1745556259193,24.56,151.47,151.42,11.87327041]
[1745556259490,6.6007,151.45,151.42,5.27137041]
[1745556260187,6.6004,151.46,151.42,5.27137041]
[1745556260590,6.6004,151.46,151.42,11.87337041]
[1745556261891,6.6004,151.46,151.42,5.27137041]
[1745556263894,6.6004,151.46,151.42,11.87337041]
[1745556265096,6.6007,151.45,151.42,5.27137041]
[1745556265296,5.27137041,151.44,151.39,5.27137041]
[1745556265497,24.56,151.47,151.39,5.27137041]
[1745556265793,5.27137041,151.44,151.39,5.27137041]
[1745556266296,6.6022,151.42,151.39,5.27137041]
[1745556266598,5.27137041,151.44,151.39,11.87457041]
[1745556266799,6.6017,151.43,151.39,11.87457041]
[1745556267196,24.56,151.47,151.41,5.27137041]
[1745556267494,29.83137041,151.47,151.41,5.27137041]